Workbook

Sheet Home Tab

Sheet Customer Data
A1: Customer Information
A2: Name | B2: Street Address | C2: Zip Code | D2: City | E2: State | F2: Phone # | G2: Contact | H2: Date Due | I2: Provider | J2: Lead Rep | K2: Level of Interest | L2: Price Extended | M2: Notes
A3: Payless Shoe Source | B3: 120 W. State St. | D3: Pleasant Grove | E3: Utah | H3: 2011-01-06 | I3: New | J3: Zach Clegg
A4: Salon Vox | B4: 456 E. State Ste. 700 | D4: American Fork | E4: Utah | H4: 2011-01-01 | J4: Zach Clegg
A5: PORTER PAINT | B5: 635 N 1200 West | D5: Orem | E5: Utah | F5: (801) 224-8885 | G5: Ryan Hopkins | H5: 2011-01-01 | J5: Zach Clegg
A6: FAST GAS OREM | B6: 185 W 400 North | D6: Orem | E6: Utah | F6: (801) 226-3561 | G6: Michele Gout | H6: 2011-01-01 | I6: Utah Fire | J6: Zach Clegg
A7: LKC Auto | B7: 150 E. State | D7: Pleasant Grove | E7: Utah | H7: 2011-01-01 | I7: Boss | J7: Zach Clegg
A8: Edible Arrangements | B8: 2500 N. University Parkway #29 | D8: Provo | E8: Utah | H8: 2011-01-01 | I8: New | J8: Matt Wald
A9: DOWNEAST OUTFITTERS | B9: 2255 N UNIVERSITY PKWY STE 25 | D9: Provo | E9: Utah | F9: (801)375-9390 | G9: FREEDMAN, WILLIAM | H9: 2011-01-01 | I9: Taylor's | J9: Matt Wald
A10: Partyland | B10: 850 E. 310 N. | D10: Lehi | E10: Utah | H10: 2011-01-08 | I10: Colonial | J10: Zach Clegg
A11: Convicted Ink | B11: 275 N. University Avenue | D11: Provo | E11: Utah | F11: Zach Clegg | H11: 2011-01-08 | I11: Taylor's | J11: Zach Clegg | K11: 2
A12: PAYLESS SHOE SOURCE #2229 | B12: 495 N State Street | D12: Orem | E12: Utah | F12: (801) 226-8716 | G12: Jon Cogswell | H12: 2011-01-10 | I12: Utah Fire | J12: Zach Clegg
A13: WALGREENS #9192 | B13: 763 N State Street | D13: Orem | E13: Utah | F13: (801) 734-1609 | G13: Elmo Diaz | H13: 2011-01-10 | I13: Firetrol | J13: Zach Clegg
A14: HOME FABRICS | B14: 323 E University Parkway | D14: Orem | E14: Utah | F14: (801) 224-3044 | G14: Hannah Burningham | H14: 2011-01-10 | I14: Fire Suppression | J14: Zach Clegg
A15: PETCO ANIMAL SUPPLIES, INC. #491 | B15: 85 S State Street | D15: Orem | E15: Utah | F15: (801) 434-8819 | G15: Michelle Kellar | H15: 2011-01-10 | I15: Utah Fire | J15: Zach Clegg
A16: The Car Doctors | B16: 554 W. State St. | D16: Pleasant Grove | E16: Utah | F16: 801-785-9882 | H16: 2011-01-10 | I16: Utah Fire | J16: Zach Clegg
A17: Grease Monkey | B17: 101 N. West State Rd. | D17: American Fork | E17: Utah | H17: 2011-01-11 | I17: Taylor's | J17: Zach Clegg | K17: 2
A18: DOWNEAST OUTFITTERS, INC. | B18: 79 N State Street | D18: Orem | E18: Utah | F18: (801) 434-4866 | G18: Charels Freedman | H18: 2011-01-11 | I18: Taylor's | J18: Zach Clegg
A19: O'REILLY AUTO PARTS #3443 | B19: 874 S State Street | D19: Orem | E19: Utah | F19: (801) 224-0117 | G19: Bill Stuver | H19: 2011-01-11 | I19: Utah Fire | J19: Zach Clegg
A20: Sunkissed | B20: 101 North 1200 East | D20: Lehi | E20: Utah | H20: 2011-01-12 | I20: Taylor's | J20: Zach Clegg
A21: Blockbuster | B21: 2017 N. University Parkway | D21: Provo | E21: Utah | H21: 2011-01-12 | I21: Utah Fire | J21: Matt Wald
A22: Beaches | B22: 1400 N. 500 E. | D22: Logan | E22: Utah | H22: 2011-01-13 | I22: Cache Valley | J22: Zach Clegg
A23: Love to Cook | B23: 1211 N. Main St. | D23: Logan | E23: Utah | H23: 2011-01-13 | I23: Cache Valley | J23: Zach Clegg
A24: BEST BUY APPLIANCE | B24: 665 N State Street | D24: Orem | E24: Utah | F24: (801) 226-2620 | G24: Scott Morgan | H24: 2011-01-14 | I24: FirePro | J24: Zach Clegg
A25: Marz Precision | B25: 1500 N. State | D25: Lehi | E25: Utah | H25: 2011-01-15 | J25: Zach Clegg | K25: 1 | L25: 25
A26: Data Pad | B26: 115 S. State St. | D26: Lindon | E26: Utah | H26: 2011-01-17 | I26: Colonial | J26: Zach Clegg | K26: 3
A27: INSTUDIO PHOTOGRAPHICS, LLC | B27: 44 W Center Street | D27: Orem | E27: Utah | F27: (801) 221-1100 | G27: Marylyn Linge | H27: 2011-01-17 | J27: Zach Clegg
A28: Down East | B28: 45 N. 600 W. | D28: American Fork | E28: Utah | H28: 2011-01-18 | I28: Taylor's | J28: Zach Clegg
A29: Fedex | B29: 101 N. West State Rd. | D29: American Fork | E29: Utah | H29: 2011-01-18 | J29: Zach Clegg | K29: 3
A30: Mercy House Coffee | B30: 1680 N. State St. | D30: Orem | E30: Utah | F30: (801) 221-2595 | H30: 2011-01-18 | J30: Zach Clegg
A31: Walker's | B31: 290 W. Main St. | D31: American Fork | E31: Utah | H31: 2011-01-20 | I31: State Fire | J31: Zach Clegg
A32: BIBISUNFLOWER | B32: 845 N 100 West | D32: Orem | E32: Utah | F32: (801) 226-4060 | G32: Bibi Martinez | H32: 2011-01-21 | J32: Zach Clegg
A33: EL CENTRO DE OREM | B33: 845 N 100 West | D33: Orem | E33: Utah | F33: (801) 802-0350 | G33: Carlos Uribe | H33: 2011-01-26 | J33: Zach Clegg
A34: Cookie Cutters | B34: 468 N. 1050 W. | D34: American Fork | E34: Utah | H34: 2011-01-27 | I34: Colonial | J34: Zach Clegg
A35: Sherwin Williams | B35: 268 N. State St. | D35: Orem | E35: Utah | H35: 2011-01-27 | J35: Zach Clegg
A36: NICO'S AUTO SALES | B36: 142 S State Street | D36: Orem | E36: Utah | F36: (801) 426-4344 | G36: Gaston Biscaro | H36: 2011-01-27 | J36: Zach Clegg
A37: Sherwin Williams | B37: 462 N. Main | D37: Logan | E37: Utah | H37: 2011-01-30 | I37: Cache Valley | J37: Zach Clegg
A38: American Fork Pawn | B38: 88 W. Main St. | D38: American Fork | E38: Utah | F38: 8578017 | H38: 2011-02-01 | I38: New | J38: Zach Clegg
A39: CENTER STAGE PERFORMING ARTS PRESCHOOL/KINDERGARTEN, LLC | B39: 585 N 1200 West | D39: Orem | E39: Utah | F39: (801) 785-9740 | G39: Jilane Bodily | H39: 2011-02-01 | J39: Zach Clegg
A40: CENTER STAGE PERFORMING ARTS STUDIOS | B40: 575 N 1200 West | D40: Orem | E40: Utah | F40: (801) 224-9012 | G40: Alex Murillo | H40: 2011-02-01 | J40: Zach Clegg
A41: HERINGER MARINE | B41: 944 N 1200 West | D41: Orem | E41: Utah | F41: (801) 225-9133 | G41: Clark Heringer | H41: 2011-02-01 | J41: Zach Clegg
A42: FAMILY LEGACY DENTAL,LLC | B42: 845 N 100 West Suite 100 | D42: Orem | E42: Utah | F42: (801) 227-5080 | G42: Lamona Fullmer | H42: 2011-02-01 | J42: Zach Clegg
A43: Dernell's Barber Shop | B43: 1120 S. State ste. 140 | D43: Orem | E43: Utah | H43: 2011-02-01 | J43: Zach Clegg
A44: VAN WAGENEN FINANCE, L.C. | B44: 953 S State Street | D44: Orem | E44: Utah | F44: (801) 226-4488 | G44: Norman Van Wagenen | H44: 2011-02-01 | I44: Colonial | J44: Zach Clegg
A45: Doug Martin Photography | B45: 1595 S. State ST. | D45: Orem | E45: Utah | H45: 2011-02-01 | I45: Taylor's | J45: Zach Clegg | K45: 2
A46: SunSational Awnings | B46: 587 W. State St. | D46: Pleasant Grove | E46: Utah | H46: 2011-02-01 | I46: Taylor's | J46: Zach Clegg
A47: Dog Daycare | B47: center St. main | D47: Pleasant Grove | E47: Utah | H47: 2011-02-01 | J47: Zach Clegg
A48: Gianni | B48: 270 W. Center St. | D48: Provo | E48: Utah | H48: 2011-02-01 | J48: Zach Clegg | K48: 2
A49: Day Murray Music | B49: 115 E. Main | D49: Lehi | E49: Utah | H49: 2011-02-03 | I49: Utah Fire | J49: Zach Clegg
A50: Deadwood Pawn | B50: 32 W. Main St. | D50: Lehi | E50: Utah | H50: 2011-02-03 | I50: Utah Fire | J50: Zach Clegg
A51: Grease'n'go | B51: 274 S. 740 East | D51: American Fork | E51: Utah | F51: (801) 763-9400 | H51: 2011-02-06 | J51: Zach Clegg
A52: SPEEDY ELECTRIC AUTO | B52: 809 W 400 North | D52: Orem | E52: Utah | F52: (801) 227-4507 | G52: Angel Hernandez | H52: 2011-02-07 | I52: Taylor's | J52: Zach Clegg
A53: DREAM DINNERS | B53: 845 N 100 West 105 | D53: Orem | E53: Utah | F53: (801) 225-7655 | G53: Danielle Mahoney | H53: 2011-02-08 | J53: Zach Clegg
A54: Rain Check | B54: 116 W. Main | D54: American Fork | E54: Utah | F54: 492-4333 | H54: 2011-02-10 | I54: FirePro | J54: Zach Clegg
A55: Stone Haven Dental | B55: 179 N. 1200 E | D55: Lehi | E55: Utah | H55: 2011-02-10 | I55: Taylor's | J55: Zach Clegg
A56: Summit Fastners | B56: 40 N Geneva Rd. | D56: Orem | E56: Utah | F56: (801) 224-3881 | H56: 2011-02-10 | J56: Zach Clegg
A57: Evergreen Square | B57: 901 S. State | D57: Orem | E57: Utah | H57: 2011-02-11 | I57: Taylor's | J57: Zach Clegg
A58: Vida y Salud | B58: 1110 S. State | D58: Orem | E58: Utah | H58: 2011-02-11 | I58: Taylor's | J58: Zach Clegg
A59: T J MAXX #152 | B59: 268 W University Parkway | D59: Orem | E59: Utah | F59: (801) 226-6050 | G59: Robert Tuttle | H59: 2011-02-11 | I59: Utah Fire | J59: Zach Clegg
A60: General Store | B60: 347 W. 200 S. | D60: Pleasant Grove | E60: Utah | H60: 2011-02-11 | I60: Taylor's | J60: Zach Clegg
A61: EZ PAWN | B61: 934 N State Street | D61: Orem | E61: Utah | F61: (801) 404-5660 | G61: Stacy Beausher | H61: 2011-02-14 | J61: Zach Clegg
A62: SHOPKO STORES OPERATING CO LLC #086 | B62: 2266 N UNIVERSITY PKWY | D62: Provo | E62: Utah | F62: (801)373-7000 | G62: SHOPKO STORES OPERATING CO LLC | H62: 2011-02-14 | I62: Utah Fire | J62: Matt Wald
A63: Affordable Dentures | B63: 484 North 950 West | D63: American Fork | E63: Utah | H63: 2011-02-15 | I63: Colonial | J63: Zach Clegg
A64: SEASONS SALON & DAY SPA LLC | B64: 934 N State Street #108 | D64: Orem | E64: Utah | F64: (801) 372-4030 | G64: Autumn Spencer | H64: 2011-02-15 | J64: Zach Clegg
A65: Edward Jones | B65: 340 S. State | D65: Pleasant Grove | E65: Utah | H65: 2011-02-15 | I65: FirePro | J65: Zach Clegg
A66: Cal Ranch | B66: 675 S. 500 East | D66: American Fork | E66: Utah | H66: 2011-02-17 | I66: Utah Fire | J66: Zach Clegg
A67: Clark's Tuxedos | B67: 62 N. 600 W. | D67: American Fork | E67: Utah | H67: 2011-02-17 | J67: Zach Clegg
A68: EVCO HOUSE OF HOSE | B68: 113 N 1200 West | D68: Orem | E68: Utah | F68: (801) 226-2882 | G68: Dave Adkins | H68: 2011-02-17 | I68: Utah Fire | J68: Zach Clegg
A69: ROYS AUTO SERVICE | B69: 1047 N State Street #4 | D69: Orem | E69: Utah | F69: (801) 224-7940 | G69: Roy Morgan | H69: 2011-02-18 | J69: Zach Clegg
A70: Young Family Dental | B70: 471 E. State | D70: American Fork | E70: Utah | H70: 2011-03-01 | J70: Zach Clegg
A71: Rubies Cake Shop | B71: 30 W. Main St. | D71: American Fork | E71: Utah | H71: 2011-03-01 | I71: New | J71: Zach Clegg
A72: Avon | B72: 51 N. 600 W. | D72: American Fork | E72: Utah | H72: 2011-03-01 | I72: Boss | J72: Zach Clegg
A73: Greenwood Service | B73: 250 E. State St. | D73: American Fork | E73: Utah | H73: 2011-03-01 | I73: Colonial | J73: Zach Clegg | K73: 2 | L73: 10
A74: Dunbeck & Moss | B74: 175 N. Main | D74: Heber City | E74: Utah | H74: 2011-03-01 | I74: Byrd's | J74: Zach Clegg | K74: 2
A75: The Local Grind | B75: 55 W. 100 S. | D75: Heber City | E75: Utah | H75: 2011-03-01 | J75: Zach Clegg | K75: 2
A76: Simmons Floors | B76: 1359 East Main Street | D76: Lehi | E76: Utah | H76: 2011-03-01 | I76: Boss | J76: Zach Clegg
A77: Vinyl Fence | B77: 1350 E. Main St. | D77: Lehi | E77: Utah | H77: 2011-03-01 | I77: Colonial | J77: Zach Clegg
A78: Haws & Co. | B78: 127 E. Main St. | D78: Lehi | E78: Utah | H78: 2011-03-01 | I78: Colonial | J78: Zach Clegg
A79: Dent Master | B79: 710 N. 400 E. | D79: Lehi | E79: Utah | H79: 2011-03-01 | I79: Fire Suppression | J79: Zach Clegg | K79: 1 | L79: 10
A80: Beyond Taekwondo | B80: 150 S. State St. Suite 10 | D80: Lindon | E80: Utah | F80: 801-796-0412 | H80: 2011-03-01 | J80: Zach Clegg
A81: FAST GAS #5 | B81: 1091 N State Street | D81: Orem | E81: Utah | F81: (801) 224-3272 | G81: Austin Westring | H81: 2011-03-01 | J81: Zach Clegg
A82: TIMP RENTAL CENTER | B82: 155 W 800 North #1 | D82: Orem | E82: Utah | F82: (801) 785-3705 | G82: John Phelon | H82: 2011-03-01 | J82: Zach Clegg
A83: PERFORMANCE AUDIO, LLC | B83: 1420 W Center Street | D83: Orem | E83: Utah | F83: (801) 709-2989 | G83: Chris Fillmore | H83: 2011-03-01 | J83: Zach Clegg
A84: Geshik | B84: 148 S. State Street | D84: Orem | E84: Utah | H84: 2011-03-01 | J84: Zach Clegg
A85: State Farm Insurance | B85: 1015 S. State St. | D85: Orem | E85: Utah | H85: 2011-03-01 | I85: Boss | J85: Zach Clegg
A86: BRADY'S AUTO WORKS | B86: 243 W 700 North | D86: Orem | E86: Utah | F86: (801) 615-4311 | G86: Scott Brady | H86: 2011-03-01 | I86: New | J86: Zach Clegg
A87: JUICE 'N JAVA | B87: 535 N State Street | D87: Orem | E87: Utah | F87: (801) 374-2600 | G87: Jimmy Guroufalias | H87: 2011-03-01 | J87: Zach Clegg
A88: Urban Downfall | B88: 1290 S. State St. | D88: Orem | E88: Utah | H88: 2011-03-01 | I88: Boss | J88: Zach Clegg
A89: REAL FOODS MARKET | B89: 420 W 800 North | D89: Orem | E89: Utah | F89: (801) 368-1706 | G89: Jason Nielsen | H89: 2011-03-01 | J89: Zach Clegg
A90: FINISH TAILOR | B90: 327 E 1200 South #6 | D90: Orem | E90: Utah | F90: (801) 224-6368 | G90: De Tores | H90: 2011-03-01 | I90: Boss | J90: Zach Clegg | K90: 2
A91: Modify Salon | B91: 1400 S. State sT. | D91: Orem | E91: Utah | H91: 2011-03-01 | K91: 2
A92: XPDEX | B92: 1786 S. State St. | D92: Orem | E92: Utah | H92: 2011-03-01 | I92: Utah Fire | J92: Zach Clegg | K92: 3 | M92: Corporate
A93: mactraders | B93: 46 E. State St. | D93: Pleasant Grove | E93: Utah | H93: 2011-03-01 | I93: Colonial | J93: Zach Clegg
A94: Diamond Rental | B94: 1300 W. State St. | D94: Pleasant Grove | E94: Utah | H94: 2011-03-01 | K94: 3 | M94: Corporate
A95: SALON K | B95: 5047 N EDGEWOOD DR | D95: Provo | E95: Utah | F95: (801)376-4901 | G95: RONEY, BROOKE | H95: 2011-03-01 | I95: Boss | J95: Zach Clegg
A96: Amigo Insurance | B96: 1700 N. State ST. | D96: Provo | E96: Utah | F96: 801-373-1202 | H96: 2011-03-01 | I96: Boss | J96: Zach Clegg | K96: 1 | L96: 20
A97: Animal Ark | B97: 500 E. State | D97: American Fork | E97: Utah | H97: 2011-03-02 | I97: Colonial | J97: Zach Clegg
A98: Beautylicious | B98: 648 East State | D98: American Fork | E98: Utah | F98: 801-763-7314 | H98: 2011-03-04 | I98: Boss | J98: Zach Clegg
A99: Hobby Lobby | B99: 240 N. West State Rd. | D99: American Fork | E99: Utah | H99: 2011-03-04 | I99: Utah Fire | J99: Zach Clegg
A100: FAMOUS FOOTWEAR #1427 | B100: 292 W University Parkway | D100: Orem | E100: Utah | F100: (801) 226-5292 | G100: Wendi Watt | H100: 2011-03-04 | I100: State Fire | J100: Zach Clegg
A101: MICHAELS #8003 | B101: 321 E University Parkway | D101: Orem | E101: Utah | F101: (801) 225-1085 | G101: Luaria Webb | H101: 2011-03-05 | I101: Simplex Grinnell | J101: Zach Clegg
A102: MCGEE'S AUTO REPAIR | B102: 1031 N State Street | D102: Orem | E102: Utah | F102: (801) 400-1658 | G102: Joe McGee | H102: 2011-03-07 | J102: Zach Clegg
A103: UPPER CASE PRINTING, INC. | B103: 459 W Center Street | D103: Orem | E103: Utah | F103: (801) 373-0507 | G103: Doug Hendrickson | H103: 2011-03-07 | I103: Taylor's | J103: Zach Clegg
A104: Lehi Stylists | B104: 200 E. State | D104: Lehi | E104: Utah | H104: 2011-03-08 | I104: Colonial | J104: Zach Clegg | K104: 1 | L104: 15
A105: Big Mountain Countertops | B105: 317 N. State St. | D105: Orem | E105: Utah | H105: 2011-03-08 | I105: Boss | J105: Zach Clegg
A106: EVOLUTION SALON DAY SPA, LLC | B106: 1625 N State Street | D106: Orem | E106: Utah | F106: (801) 226-2029 | G106: Mary Ann Thoresen | H106: 2011-03-08 | I106: Boss | J106: Zach Clegg
A107: Dollar Cuts | B107: 103 N. West State Rd. | D107: American Fork | E107: Utah | H107: 2011-03-10 | I107: Colonial
A108: CLEGG AUTOMOTIVE MACHINE | B108: 1599 W Center Street | D108: Orem | E108: Utah | F108: (801) 225-7554 | G108: Earl Clegg | H108: 2011-03-10 | J108: Zach Clegg
A109: L.A. Nails | B109: 456 E. State ste. 1000 | D109: American Fork | E109: Utah | H109: 2011-03-11 | I109: Boss | J109: Zach Clegg
A110: K-MART CORP #3096 | B110: 475 N State Street | D110: Orem | E110: Utah | F110: (801) 224-0234 | G110: Jolene Lecheminant | H110: 2011-03-11 | I110: Dixie Fire | J110: Zach Clegg
A111: PEBBLES IN MY POCKET, INC. | B111: 1132 S State Street | D111: Orem | E111: Utah | F111: (801) 224-1857 | G111: Brenda Birrell | H111: 2011-03-11 | I111: Taylor's | J111: Zach Clegg
A112: Pro Signs | B112: 1034 S. State St. | D112: Orem | E112: Utah | F112: 801-765-0039 | H112: 2011-03-12 | I112: Boss | J112: Zach Clegg
A113: la Pequinita | B113: 1102 S. State St. | D113: Orem | E113: Utah | H113: 2011-03-12 | I113: Boss | J113: Zach Clegg
A114: HAAGA'S MATTRESS | B114: 1032 S State Street | D114: Orem | E114: Utah | F114: (801) 802-6050 | G114: Brad Haaga | H114: 2011-03-12 | I114: Boss | J114: Zach Clegg
A115: IMAGINE REAL PEACE SMOKE SHOP | B115: 1036 S State Street | D115: Orem | E115: Utah | F115: (801) 687-6450 | G115: Brandon Marostica | H115: 2011-03-12 | I115: Boss | J115: Zach Clegg
A116: DRESSED IN WHITE | B116: 236 E University Parkway | D116: Orem | E116: Utah | F116: (801) 802-9511 | G116: Janice Heilner | H116: 2011-03-12 | I116: Utah Fire | J116: Matt Wald
A117: Sally's Beauty Supply | B117: 468 N. 990 W. | D117: American Fork | E117: Utah | H117: 2011-03-13 | I117: FirePro | J117: Zach Clegg
A118: General & Cosmetic | B118: 60 E. State St. | D118: Pleasant Grove | E118: Utah | H118: 2011-03-14 | I118: Taylor's | J118: Zach Clegg
A119: Galaxie Lighting | B119: 212 S. 1060 W. | D119: Lindon | E119: Utah | H119: 2011-03-15 | J119: Zach Clegg
A120: ACCESS TECHNOLOGY SOLUTIONS, LC | B120: 932 N State Street #2 | D120: Orem | E120: Utah | F120: (801) 420-9200 | G120: David Boyle | H120: 2011-03-15 | J120: Zach Clegg
A121: SALMON PHARMACY | B121: 450 W 800 North | D121: Orem | E121: Utah | F121: (801) 225-2150 | G121: Gary Nakken | H121: 2011-03-15 | I121: Boss | J121: Zach Clegg
A122: ELASE OF OREM, INC | B122: 160 E University Parkway Ste.L | D122: Orem | E122: Utah | F122: (801) 229-2229 | G122: Barbara Brinton | H122: 2011-03-15 | I122: Boss | J122: Matt Wald
A123: JPL COMPUTER SERVICES OF UTAH | B123: 418 N State Street | D123: Orem | E123: Utah | F123: (801) 226-1892 | G123: Perri Bird | H123: 2011-03-16 | I123: Taylor's | J123: Zach Clegg
A124: SHOE CARNIVAL #417 | B124: 305 E University Parkway | D124: Orem | E124: Utah | F124: (812) 867-6471 | G124: Rusty Suiters | H124: 2011-03-17 | I124: AAA | J124: Zach Clegg
A125: ENVISION HOME HEALTH, LLC | B125: 31 S 400 West | D125: Orem | E125: Utah | F125: (801) 225-7971 | G125: Greg Atwood | H125: 2011-03-17 | I125: Taylor's | J125: Zach Clegg
A126: Knights | B126: 1200 E. Main ST. | D126: Lehi | E126: Utah | H126: 2011-03-20 | I126: Colonial | J126: Zach Clegg
A127: BATTERIES PLUS | B127: 388 W University Parkway | D127: Orem | E127: Utah | F127: (801) 764-0444 | G127: Doug Marrott | H127: 2011-03-20 | I127: State Fire | J127: Zach Clegg
A128: ACCURATE HEARING CLINICS & AUDIOLO | B128: 3216 N UNIVERSITY AVE | D128: Provo | E128: Utah | F128: (801)374-8346 | G128: BACHER, RYAN K | H128: 2011-03-20 | I128: Boss | J128: Zach Clegg
A129: Healthcare | B129: 480 N. Main | D129: Logan | E129: Utah | H129: 2011-03-21 | I129: Cache Valley | J129: Zach Clegg
A130: Dollar Cuts | B130: 1400 N. 500 E. | D130: Logan | E130: Utah | F130: Zach Clegg | H130: 2011-03-21 | I130: Cache Valley | J130: Zach Clegg
A131: Dreamz Salon | B131: 252 W. Main St. | D131: Lehi | E131: Utah | H131: 2011-03-22 | I131: Boss | J131: Zach Clegg
A132: Matrix Signs | B132: 35 W. Main St. | D132: Lehi | E132: Utah | H132: 2011-03-22 | J132: Zach Clegg
A133: Victor's Tire | B133: Center St. State | D133: Lehi | E133: Utah | H133: 2011-03-22 | J133: Zach Clegg
A134: Kwal Paints | B134: 176 W. State Rd. | D134: American Fork | E134: Utah | H134: 2011-03-24 | I134: Utah Fire | J134: Zach Clegg
A135: COLOR ME MINE | B135: 5033 N EDGEWOOD DR | D135: Provo | E135: Utah | F135: (801)434-4848 | G135: BKS CERAMICS LLC | H135: 2011-03-24 | I135: Boss | J135: Zach Clegg
A136: DANCE WORKS | B136: 3228 N UNIVERSITY AVE | D136: Provo | E136: Utah | F136: (801)375-4622 | G136: BROOKS, NATALIE | H136: 2011-03-24 | I136: Boss | J136: Zach Clegg
A137: JJ's Nail Academy | B137: 1700 N. State ST. | D137: Provo | E137: Utah | H137: 2011-03-24 | I137: Taylor's | J137: Zach Clegg | K137: 2
A138: Bridal Center | B138: 235 N. University Avenue | D138: Provo | E138: Utah | H138: 2011-03-24 | I138: Taylor's | J138: Zach Clegg | K138: 2
A139: FABRIC WAREHOUSE #1376 | B139: 266 N State Street | D139: Orem | E139: Utah | F139: (801) 226-8425 | G139: Fabric Warehouse #376 | H139: 2011-03-26 | I139: Firetrol | J139: Zach Clegg
A140: MONARCH HONDA | B140: 398 W 800 North | D140: Orem | E140: Utah | F140: (801) 224-4070 | G140: Mike Nuttall | H140: 2011-03-27 | J140: Zach Clegg
A141: FABRIC MILL II, INC. | B141: 414 E 1400 South | D141: Orem | E141: Utah | F141: (801) 225-3123 | G141: David Skinner | H141: 2011-03-28 | I141: Taylor's | J141: Matt Wald
A142: Durfey's Dry Cleaners | B142: 286 W. Main St. | D142: American Fork | E142: Utah | H142: 2011-03-30 | I142: Boss | J142: Zach Clegg
A143: American Fork Chiropractic | B143: 98 N. West State Rd. | D143: American Fork | E143: Utah | H143: 2011-03-30 | I143: Boss | J143: Zach Clegg
A144: Dean Insurance | B144: Main St. State St. 17 | D144: American Fork | E144: Utah | F144: 801-763-1313 | H144: 2011-03-30 | I144: Boss | J144: Zach Clegg | K144: 2
A145: Realty Advantage | B145: Main St. State St. 491 | D145: American Fork | E145: Utah | H145: 2011-03-30 | J145: Zach Clegg | K145: 2
A146: Alliance Clinical | B146: Main St. State St. 71 | D146: American Fork | E146: Utah | F146: 801-763-7775 | H146: 2011-03-30 | I146: Boss | J146: Zach Clegg | K146: 2
A147: American Family Insurance | B147: 238 E. State St. | D147: Pleasant Grove | E147: Utah | F147: 801-785-5454 | H147: 2011-03-30 | I147: Boss | J147: Zach Clegg
A148: Jones Dental Care | B148: 597 S Pleasant Grove Blvd # 12 | D148: Pleasant Grove | E148: Utah | F148: 796-3535 | H148: 2011-03-30 | I148: Boss | J148: Zach Clegg
A149: Aspen Salon | B149: 322 S. State St. | D149: Pleasant Grove | E149: Utah | F149: 801-785-6677 | H149: 2011-03-30 | I149: Taylor's | J149: Zach Clegg
A150: House of Ivins | B150: 650 East. State | D150: American Fork | E150: Utah | F150: 801-756-2460 | H150: 2011-04-01 | J150: Zach Clegg
A151: Our little store | B151: 50 w. Main St. | D151: American Fork | E151: Utah | H151: 2011-04-01 | I151: Fred's | J151: Zach Clegg
A152: Kiewit | B152: 1 W. Main St. | D152: American Fork | E152: Utah | H152: 2011-04-01 | J152: Zach Clegg
A153: Kawasak | B153: 260 E. Main St. | D153: American Fork | E153: Utah | H153: 2011-04-01 | J153: Zach Clegg | K153: 2
A154: Mall Insurance | B154: Main St. State St. 57 | D154: American Fork | E154: Utah | F154: 801-756-3503 | H154: 2011-04-01 | J154: Zach Clegg | K154: 2
A155: MWA | B155: 50 W. Main St. | D155: Lehi | E155: Utah | H155: 2011-04-01 | J155: Zach Clegg
A156: Forget Me Not | B156: 785 East 200 South | D156: Lehi | E156: Utah | H156: 2011-04-01 | J156: Zach Clegg
A157: Cricket | B157: 1480 N. Main | D157: Logan | E157: Utah | H157: 2011-04-01 | I157: New | J157: Zach Clegg
A158: Protective | B158: 500 N. Main | D158: Logan | E158: Utah | H158: 2011-04-01 | I158: Packer's | J158: Zach Clegg
A159: Liquid Assets | B159: 675 N. 1200 West | D159: Orem | E159: Utah | H159: 2011-04-01 | J159: Zach Clegg
A160: BECCA'S PET SALON | B160: 327 E 1200 South 5 | D160: Orem | E160: Utah | F160: (801) 221-0903 | G160: Rebecca Smith | H160: 2011-04-01 | J160: Zach Clegg
A161: WESTERN SAW AND SMALL ENGINE REPAIR | B161: 1700 N State Street | D161: Orem | E161: Utah | F161: (801) 224-1998 | G161: Brad Holdaway | H161: 2011-04-01 | I161: Taylor's | J161: Zach Clegg
A162: DIANE'S WIG SHOP | B162: 345 E University Parkway | D162: Orem | E162: Utah | F162: (801) 224-5070 | G162: Diane Thompson | H162: 2011-04-01 | I162: Golden Spike | J162: Zach Clegg
A163: MR. E'S SPORT CARDS & COLLECTIBLES | B163: 720 S State Street | D163: Orem | E163: Utah | F163: (801) 367-0287 | G163: Rodney Eastman | H163: 2011-04-01 | J163: Zach Clegg
A164: TUESDAY MORNING, INC. #276 | B164: 123 S State Street | D164: Orem | E164: Utah | F164: (801) 226-4194 | G164: Jody Ford | H164: 2011-04-01 | I164: FirePro | J164: Zach Clegg
A165: The Dentist | B165: 238 E. State St. | D165: Pleasant Grove | E165: Utah | F165: 801-796-7779 | H165: 2011-04-01 | J165: Zach Clegg
A166: S&J Automotive | B166: 330 W. 200 S. | D166: Pleasant Grove | E166: Utah | F166: 801-785-4094 | H166: 2011-04-01 | I166: Colonial | J166: Zach Clegg
A167: Christensen Truck Sales | B167: 1300 W. State St. | D167: Pleasant Grove | E167: Utah | H167: 2011-04-01 | J167: Zach Clegg | K167: 1 | L167: 8
A168: JENNY CRAIG OPER INC #505 | B168: 2250 N UNIVERSITY PKWY STE 40 | D168: Provo | E168: Utah | F168: (801)373-1447 | G168: JENNY CRAIG WEIGHT CENTRES | H168: 2011-04-01 | I168: Fire Suppression | J168: Zach Clegg
A169: Carniceria | B169: 250 N. 100 W. | D169: Provo | E169: Utah | H169: 2011-04-01 | I169: Boss | J169: Zach Clegg
A170: Envisio Express | B170: 250 N. 100 W. | D170: Provo | E170: Utah | H170: 2011-04-01 | I170: Boss | J170: Zach Clegg
A171: Ingrid's Salon & Boutique | B171: 250 N. 100 W. | D171: Provo | E171: Utah | H171: 2011-04-01 | I171: Boss | J171: Zach Clegg
A172: B&G pharmacy | B172: 280 W. Center St. | D172: Provo | E172: Utah | H172: 2011-04-01 | I172: Taylor's | J172: Zach Clegg | K172: 2
A173: Cricket | B173: 178 W. Center St. | D173: Orem | E173: Utah | H173: 2011-04-04 | I173: Byrd's | J173: Zach Clegg
A174: CHECK INTO CASH | B174: 900 N State Street | D174: Orem | E174: Utah | F174: (801) 765-1290 | G174: Mitch Kautzmann | H174: 2011-04-10 | J174: Zach Clegg
A175: RADIO SHACK #4248 | B175: 1466 N State Street | D175: Orem | E175: Utah | F175: (801) 765-1589 | G175: Brent Casper | H175: 2011-04-11 | I175: FirePro | J175: Zach Clegg
A176: Onyx Nails | B176: 115 E. 1400 N. | D176: Logan | E176: Utah | H176: 2011-04-13 | I176: Cache Valley | J176: Zach Clegg
A177: Pic a Part | B177: 255 S. Geneva Rd. | D177: Orem | E177: Utah | H177: 2011-04-15 | J177: Zach Clegg
A178: Bike Peddler | B178: 28 E. Main St. | D178: American Fork | E178: Utah | F178: 801-756-5014 | H178: 2011-04-25 | J178: Zach Clegg
A179: Big Boy | B179: 730 N. State St. | D179: Lindon | E179: Utah | H179: 2011-04-27 | J179: Zach Clegg
A180: Aamco | B180: 95 W. Main St. | D180: American Fork | E180: Utah | H180: 2011-05-01 | J180: Zach Clegg
A181: Orthotime | B181: 101 North 1200 East | D181: Lehi | E181: Utah | H181: 2011-05-01 | J181: Zach Clegg
A182: Saratoga Jewlery | B182: 550 N. State St. | D182: Lindon | E182: Utah | F182: 801-785-3888 | H182: 2011-05-01 | J182: Zach Clegg
A183: Tri Tex | B183: 75 N. Mountain Way Drive | D183: Orem | E183: Utah | H183: 2011-05-01 | J183: Zach Clegg
A184: DAVID'S BRIDAL, INC. #290 | B184: 301 E University Parkway | D184: Orem | E184: Utah | F184: (770) 965-6231 | H184: 2011-05-01 | I184: AAA | J184: Zach Clegg
A185: Sports Clips | B185: 254 W. University Parkway | D185: Orem | E185: Utah | H185: 2011-05-01 | I185: Utah Fire | J185: Zach Clegg
A186: SPORT CLIPS | B186: 254 E University Parkway | D186: Orem | E186: Utah | F186: (801) 434-7050 | G186: Minon Francis | H186: 2011-05-01 | I186: Utah Fire | J186: Matt Wald
A187: Primerica | B187: 597 S Pleasant Grove Blvd | D187: Pleasant Grove | E187: Utah | H187: 2011-05-01 | I187: Colonial | J187: Zach Clegg
A188: Scott Hancock | B188: 1 S. Main St. | D188: Pleasant Grove | E188: Utah | F188: 801-785-8317 | H188: 2011-05-01 | I188: Taylor's | J188: Zach Clegg
A189: SUPERCUTS #9718 | B189: 2255 N UNIVERSITY PKWY APT 8 | D189: Provo | E189: Utah | F189: (801)356-2731 | G189: SUPERCUTS CORP SHOPS, INC | H189: 2011-05-01 | I189: Cintas | J189: Matt Wald
A190: CRICKET COMMUNICATIONS INC | B190: 2275 N UNIVERSITY PKWY | D190: Provo | E190: Utah | F190: (858)882-6347 | G190: CRICKET COMMUNICATIONS INC. | H190: 2011-05-01 | I190: Boss | J190: Matt Wald
A191: Huishi's | B191: 1775 N. State St. | D191: Provo | E191: Utah | H191: 2011-05-01 | I191: Associated Fire | J191: Zach Clegg | K191: 2
A192: Johnny's Barber Shop | B192: 200 N. 30 W. | D192: Provo | E192: Utah | H192: 2011-05-01 | I192: New | J192: Zach Clegg | K192: 1
A193: Kelsch Shoe Repair | B193: 250 N. 100 W. | D193: Provo | E193: Utah | H193: 2011-05-01 | J193: Zach Clegg | K193: 1
A194: Medstar | B194: 1500 N. State | D194: Lehi | E194: Utah | H194: 2011-05-04 | I194: Colonial | J194: Zach Clegg
A195: Lynne's Wig Boutique | B195: 194 W State Rd. | D195: American Fork | E195: Utah | F195: 763-1633 | H195: 2011-05-05 | I195: Associated Fire | J195: Zach Clegg
A196: AG TIRE SHOP | B196: 260 W 990 North | D196: Orem | E196: Utah | F196: (801) 225-7788 | G196: Ansela Felix | H196: 2011-05-06 | J196: Zach Clegg
A197: Office Max | B197: 152 N. State Street | D197: Orem | E197: Utah | H197: 2011-05-07 | I197: Firetrol | J197: Zach Clegg
A198: UPS STORE, THE #3977 | B198: 3214 N UNIVERSITY AVE | D198: Provo | E198: Utah | F198: (801)375-1700 | G198: DEWEY, ROYCE C. | H198: 2011-05-07 | I198: U.S. Fire Shield | J198: Zach Clegg
A199: Powell Auto | B199: Center St. Main | D199: Lehi | E199: Utah | H199: 2011-05-13 | J199: Zach Clegg
A200: DOUGLAS K ARTHUR DDS | B200: 169 W 800 North | D200: Orem | E200: Utah | F200: (801) 224-1997 | G200: Douglas Arthur | H200: 2011-05-15 | J200: Zach Clegg
... 344 more rows

Sheet Income Statement
B2: Total
A3: Income
A4: Fire Extinguisher Sales | B4: =1210.88 -> 1210.88 | C4: 0.1959476407
A5: Hydrotest Revenue | B5: =492.28 -> 492.28 | C5: 0.07966198514
A6: Inspection Revenue | B6: =3579.2 -> 3579.2 | C6: 0.5791951272
A7: Parts Revenue | B7: =1.5 -> 1.5 | C7: 0.0002427337648
A8: Pin Sales | B8: =3 -> 3 | C8: 0.0004854675295
A9: Valve Stem Sales | B9: =87.75 -> 87.75 | C9: 0.01419992524
A10: Total Parts Revenue | B10: =((B7)+(B8))+(B9) -> 92.25 | C10: 0.01492812653
A11: Recharge Revenue | B11: =805 -> 805 | C11: 0.1302671204
A12: Total Income | B12: =((((B4)+(B5))+(B6))+(B10))+(B11) -> 6179.61 | C12: 1
A13: Cost of Goods Sold | C13: 0
A14: Commissions | B14: =2661.8 -> 2661.8 | C14: 0.4307391567
A15: Cost of Goods Sold | B15: =0 -> 0 | C15: 0
A16: Fire Extinguishers | B16: =886.97 -> 886.97 | C16: 0.1435317115
A17: Total Cost of Goods Sold | B17: =(B15)+(B16) -> 886.97 | C17: 0.1435317115
A18: Dry Chemical | B18: =141.58 -> 141.58 | C18: 0.02291083094
A19: Hydrotest Fees | B19: =235.36 -> 235.36 | C19: 0.03808654591
A20: Recharge Fees | B20: =534.82 -> 534.82 | C20: 0.08654591471
A21: Service Materials | B21: =0 -> 0 | C21: 0
A22: Fire Extinguisher Seals | B22: =132.75 -> 132.75 | C22: 0.02148193818
A23: Pins | B23: =45 -> 45 | C23: 0.007282012943
A24: Tag Ties | B24: =42.18 -> 42.18 | C24: 0.006825673465
A25: Tags | B25: =175 -> 175 | C25: 0.02831893922
A26: Total Service Materials | B26: =((((B21)+(B22))+(B23))+(B24))+(B25) -> 394.93 | C26: 0.06390856381
A27: Total Cost of Goods Sold | B27: =(((((B14)+(B17))+(B18))+(B19))+(B20))+(B26) -> 4855.46 | C27: 0.7857227236
A28: Gross Profit | B28: =(B12)-(B27) -> 1324.15 | C28: 0.2142772764
A29: Expenses | C29: 0
A30: Advertising | B30: =312.42 -> 312.42 | C30: 0.05055658852
A31: Business Cards | B31: =100 -> 100 | C31: 0.01618225098
A32: Website | B32: =7.67 -> 7.67 | C32: 0.00124117865
A33: Total Advertising | B33: =((B30)+(B31))+(B32) -> 420.09 | C33: 0.06798001816
A34: Credit Card Fees | B34: =17.29 -> 17.29 | C34: 0.002797911195
A35: Insurance | B35: =477.42 -> 477.42 | C35: 0.07725730265
A36: License Expense | B36: =465 -> 465 | C36: 0.07524746707
A37: Office Expenses | B37: =76.2 -> 76.2 | C37: 0.01233087525
A38: invoices | B38: =37.59 -> 37.59 | C38: 0.006082908145
A39: Total Office Expenses | B39: =(B37)+(B38) -> 113.79 | C39: 0.01841378339
A40: Postage | B40: =17.6 -> 17.6 | C40: 0.002848076173
A41: Shipping Expense | B41: =18 -> 18 | C41: 0.002912805177
A42: Technician Supplies | B42: =274.91 -> 274.91 | C42: 0.04448662618
A43: Travel | B43: =59.58 -> 59.58 | C43: 0.009641385136
A44: Travel Meals | B44: =39.54 -> 39.54 | C44: 0.006398462039
A45: Total Expenses | B45: =(((((((((B33)+(B34))+(B35))+(B36))+(B39))+(B40))+(B41))+(B42))+(B43))+(B44) -> 1903.22 | C45: 0.3079838372
A46: Net Operating Income | B46: =(B28)-(B45) -> -579.07 | C46: -0.09370656077
A47: Other Expenses | C47: 0
A48: Miscellaneous | B48: =7.2 -> 7.2 | C48: 0.001165122071
A49: Total Other Expenses | B49: =B48 -> 7.2 | C49: 0.001165122071
A50: Net Other Income | B50: =(0)-(B49) -> -7.2 | C50: -0.001165122071
C51: 0
C52: 0
C53: 0
C54: 0
C55: 0
C56: 0
C57: 0
C58: 0
C59: 0
C60: 0
C61: 0
C62: 0
C63: 0
C64: 0
C65: 0
C66: 0
C67: 0
C68: 0
C69: 0
C70: 0
C71: 0
C72: 0
C73: 0
C74: 0
C75: 0
C76: 0
C77: 0
C78: 0
C79: 0
C80: 0
C81: 0
C82: 0
C83: 0
C84: 0
C85: 0
C86: 0
C87: 0
C88: 0
C89: 0
C90: 0
C91: 0
C92: 0
C93: 0
C94: 0
C95: 0
C96: 0
C97: 0
C98: 0
C99: 0
C100: 0
C101: 0
C102: 0
C103: 0
C104: 0
C105: 0
C106: 0
C107: 0
C108: 0
C109: 0
C110: 0
C111: 0
C112: 0
C113: 0
C114: 0
C115: 0
C116: 0
C117: 0
C118: 0
C119: 0
C120: 0
C121: 0
C122: 0
C123: 0
C124: 0
C125: 0
C126: 0
C127: 0
C128: 0
C129: 0
C130: 0
C131: 0
C132: 0
C133: 0
C134: 0
C135: 0
C136: 0
C137: 0
C138: 0
C139: 0
C140: 0
C141: 0
C142: 0
C143: 0
C144: 0
C145: 0
C146: 0
C147: 0
C148: 0
C149: 0
C150: 0
C151: 0
C152: 0
C153: 0
C154: 0
C155: 0
C156: 0
C157: 0
C158: 0
C159: 0
C160: 0
C161: 0
C162: 0
C163: 0
C164: 0
C165: 0
C166: 0
C167: 0
C168: 0
C169: 0
C170: 0
C171: 0
C172: 0
C173: 0
C174: 0
C175: 0
C176: 0
C177: 0
C178: 0
C179: 0
C180: 0
C181: 0
C182: 0
C183: 0
C184: 0
C185: 0
C186: 0
C187: 0
C188: 0
C189: 0
C190: 0
C191: 0
C192: 0
C193: 0
C194: 0
C195: 0
C196: 0
C197: 0
C198: 0
C199: 0
C200: 0
C201: 0
... 798 more rows

Sheet Balance Sheet
